fUST/lending_fUST_20240328
["ID","MTS","AMOUNT","RATE_DAILY","PERIOD"]
[320820743,1711578640379,-500.0,0.00086986,120]
[320820744,1711578640389,-500.0,0.00086986,120]
[320820745,1711578640398,-500.0,0.00086986,120]
[320820746,1711578640408,-500.0,0.00086986,120]
[320820747,1711578640417,-500.0,0.00086986,120]
[320820748,1711578640426,-500.0,0.00086986,120]
[320820749,1711578640435,-500.0,0.00086986,120]
[320820750,1711578640444,-500.0,0.00086986,120]
[320820751,1711578640453,-355.76285483,0.00086986,120]
[320820752,1711578640464,-500.0,0.00086986,120]
[320820753,1711578640475,-547.99378961,0.0008699,2]
[320820755,1711578640484,-400.03067079,0.0008699,7]
[320820757,1711578640493,-817.51373507,0.00086998,7]
[320820759,1711578640502,-20000.0,0.00087,120]
[320820761,1711578640512,-3878.01066747,0.00087155,2]
[320820763,1711578640520,-20000.0,0.00088,120]
[320820765,1711578640529,-992.23,0.00088542,90]
[320820767,1711578640538,-2221.62,0.00088542,120]
[320820769,1711578640548,-2000.0,0.00088889,120]
[320820771,1711578640557,-315.887608,0.000889,30]
[320820773,1711578640566,-20000.0,0.00089,120]
[320820775,1711578640575,-500.0,0.00089726,120]
[320820777,1711578640583,-5000.0,0.00089726,120]
[320820779,1711578640592,-500.0,0.00089726,120]
[320820781,1711578640601,-500.0,0.00089726,120]
[320820783,1711578640610,-500.0,0.00089726,120]
[320820784,1711578640619,-500.0,0.00089726,120]
[320820786,1711578640628,-320.59053935,0.00089726,120]
[320820788,1711578640637,-500.0,0.00089726,120]
[320820790,1711578640647,-461.33,0.00089726,120]
[320820792,1711578640656,-500.0,0.00089726,120]
[320820794,1711578640665,-2094.10279367,0.00089889,120]
[320820848,1711578643647,-462.73220732,0.00058901,4]
[320820850,1711578643657,-539.13,0.00082191,120]
[320820852,1711578643666,-539.13,0.00084789,120]
[320820854,1711578643675,-539.13,0.00087528,120]
[320820856,1711578643684,-485.03783554,0.00089889,120]
[320820858,1711578643696,-7420.85937079,0.00089889,120]
[320820860,1711578643706,-500.0,0.00089889,120]
[320820862,1711578643716,-135.14562884,0.00089889,7]
[320820864,1711578643728,-864.85437116,0.00089889,7]
[320820866,1711578643737,-355.4090916,0.00089889,120]
[320820868,1711578643747,-10375.99553828,0.0009,120]
[320820870,1711578643758,-20000.0,0.0009,120]
[320820872,1711578643769,-1147.59942,0.00090217,120]
[320820874,1711578643779,-20000.0,0.00091,120]
[320820876,1711578643788,-992.23,0.00091281,90]
[320820878,1711578643798,-2221.62,0.00091281,120]
[320820880,1711578643807,-1529.5272434,0.00091417,30]
[320820882,1711578643816,-20000.0,0.00092,120]
[320820884,1711578643825,-265.7141173,0.00092275,2]
[320820885,1711578643834,-5000.0,0.00092466,120]
[320820886,1711578643844,-500.0,0.00092466,120]
[320820887,1711578643853,-500.0,0.00092466,120]
[320820888,1711578643863,-500.0,0.00092466,120]
[320820889,1711578643872,-500.0,0.00092466,120]
[320820890,1711578643881,-500.0,0.00092466,120]
[320820891,1711578643890,-10000.0,0.00092629,120]
[320820892,1711578643900,-251.84535686,0.00092629,120]
[320820893,1711578643909,-1000.0,0.00092629,7]
[320820894,1711578643918,-150.0,0.00092944,120]
[320820896,1711578643928,-20000.0,0.00093,120]
[320820898,1711578643937,-20000.0,0.00094,120]
[320820900,1711578643945,-992.23,0.00094021,90]
[320820902,1711578643954,-2221.62,0.00094021,120]
[320820904,1711578643966,-20000.0,0.00095,120]
[320820906,1711578643975,-5000.0,0.00095206,120]
[320820908,1711578643984,-500.0,0.00095206,120]
[320820910,1711578643993,-500.0,0.00095206,120]
[320820912,1711578644002,-500.0,0.00095206,120]
[320820913,1711578644011,-500.0,0.00095206,120]
[320820915,1711578644020,-925.04581538,0.00095366,14]
[320820917,1711578644029,-409.87235812,0.00095367,2]
[320820919,1711578644038,-10000.0,0.00095369,120]
[320820921,1711578644048,-1000.0,0.00095369,7]
[320820923,1711578644057,-400.99375354,0.0009589,120]
[320820925,1711578644066,-20000.0,0.00096,120]
[320820927,1711578644075,-992.23,0.00096761,90]
[320820929,1711578644085,-2221.62,0.00096761,120]
[320820931,1711578644094,-12458.084704,0.0009696,120]
[320820933,1711578644103,-1315779.57802312,0.0009698,120]
[320820941,1711578878021,155.11012819,0.00019,2]
[320820942,1711578899936,155.10081553,0.00019,2]
[320820943,1711578925951,231.31902963,0.00019,2]
[320820944,1711578953546,15993.5095206,0.00019,2]
[320820945,1711578954212,155.0,0.00019,2]
[320820946,1711578956317,19072.52430496,0.00019,2]
[320820947,1711578965123,2292.77737842,0.00018042,2]
[320820948,1711578969544,2141.54671675,0.00019,2]
[320820949,1711578970200,155.0,0.00019,2]
[320820950,1711578972330,9648.11210592,0.00019,2]
[320820951,1711578972357,9424.41219904,0.00019,2]
[320820952,1711578978256,3796.62589503,0.0001881,2]
[320820953,1711578987543,4890.5605083,0.00019,2]
[320820954,1711578988208,155.0,0.00019,2]
[320820955,1711578994324,19072.52430496,0.00019,2]
[320820956,1711579010336,1420.2722071,0.0001881,2]
[320820957,1711579013226,163.38669525,0.0001881,2]
[320820958,1711579013262,2798.68475684,0.00018622,2]
[320820959,1711579029907,500.0,0.0001881,2]
[320820960,1711579030323,7778.53343348,0.0001881,2]
[320820961,1711579030347,10060.14596643,0.0001881,2]
[320820962,1711579038731,327.26860119,0.0001881,2]
[320820963,1711579039307,155.23391294,0.0001881,2]
[320820964,1711579056264,39457.35151944,0.0001881,2]
[320820965,1711579056290,6354.54824227,0.0001881,2]
[320820966,1711579070196,43345.45175773,0.0001881,2]
[320820967,1711579070220,2466.44800398,0.0001881,2]
[320820968,1711579075420,415.55300892,0.0001881,2]
[320820969,1711579096198,45811.89976171,0.0001881,2]
[320820970,1711579097365,199.07157888,0.0001881,2]
[320820971,1711579116241,1107.02764651,0.0001881,2]
[320820972,1711579116267,13391.33957956,0.0001881,2]
[320820973,1711579162200,8273.2829507,0.0001881,2]
[320820974,1711579162224,37519.625638,0.0001881,2]
[320820975,1711579162261,5168.48857907,0.00018622,2]
[320820977,1711579186842,-282.77641272,0.00030808,4]
[320820978,1711579186869,-2000.0,0.00030809,2]
[320820979,1711579186894,-468.70171727,0.00055787,4]
[320820980,1711579186924,-512.72317929,0.00055788,4]
[320820981,1711579186953,-1431.24645209,0.00055788,4]
[320820982,1711579186978,-154.98450155,0.00055789,4]
[320820983,1711579187005,-1999.32214709,0.00055789,4]
[320820984,1711579187031,-2417.47832027,0.00055789,4]
[320820985,1711579187057,-329.84310034,0.0005579,4]
[320820986,1711579187082,-500.85148943,0.0005579,4]
[320820987,1711579187107,-1198.83213006,0.0005579,4]
[320820988,1711579187133,-961.66654025,0.0005579,4]
[320820989,1711579187159,-300.0,0.00055791,60]
[320820990,1711579187187,-247.1478093,0.00055791,4]
[320820991,1711579187218,-3185.02078491,0.00055791,4]
[320820992,1711579187244,-3005.92944866,0.00055791,4]
[320820993,1711579187270,-8515.73531747,0.00055791,4]
[320820994,1711579187297,-205.37769357,0.00055792,4]
[320820995,1711579187324,-1603.93250442,0.00055792,4]
[320820996,1711579187349,-2853.48891841,0.00055792,4]
[320820997,1711579187374,-623.36698867,0.00055792,4]
[320820998,1711579187399,-155.0,0.00055792,4]
[320820999,1711579187532,-420.85279542,0.00055793,2]
[320821000,1711579187557,-155.0,0.00055793,4]
[320821001,1711579187584,-5391.56113433,0.00055793,4]
[320821002,1711579187609,-1730.73494631,0.00055794,4]
[320821003,1711579187634,-170.30708498,0.00055794,4]
[320821004,1711579187659,-72782.22449138,0.00055796,4]
[320821005,1711579187686,-166.666667,0.00055801,2]
[320821006,1711579187713,-281.7045139,0.00056002,2]
[320821007,1711579187738,-534.71774984,0.00056611,4]
[320821008,1711579187763,-155.75518289,0.00056611,4]
[320821009,1711579187788,-1610.48670662,0.00056611,4]
[320821010,1711579187813,-155.27032593,0.00056611,4]
[320821011,1711579187839,-230.71873041,0.00056611,4]
[320821012,1711579187864,-286.99324516,0.00056611,2]
[320821013,1711579187889,-203.20223072,0.00056611,4]
[320821014,1711579187914,-200.0,0.00056611,4]
[320821015,1711579187939,-1292.08870867,0.00056611,4]
[320821016,1711579187966,-193.03765756,0.00056612,120]
[320821017,1711579187993,-551.68255731,0.00056612,120]
[320821018,1711579188018,-281.08704013,0.00056612,4]
[320821019,1711579188043,-24900.0,0.00056614,2]
[320821020,1711579188068,-176.80181005,0.00057129,120]
[320821021,1711579188094,-561.86233506,0.00057129,120]
[320821022,1711579188119,-164.40124908,0.00057129,120]
[320821023,1711579188146,-500.0,0.00057129,120]
[320821024,1711579188171,-500.0,0.00057129,120]
[320821025,1711579188195,-192.35799531,0.00057129,120]
[320821026,1711579188219,-500.0,0.00057129,120]
[320821027,1711579188244,-500.0,0.00057129,120]
[320821028,1711579188268,-475.06548739,0.00057129,120]
[320821029,1711579188292,-500.0,0.00057129,120]
[320821030,1711579188317,-550.0,0.00057129,120]
[320821031,1711579188342,-565.50198905,0.00057129,120]
[320821032,1711579188367,-372.87445018,0.00057129,120]
[320821033,1711579188392,-500.0,0.00057129,120]
[320821034,1711579188418,-158.48613725,0.00057129,120]
[320821035,1711579188445,-500.0,0.00057129,120]
[320821036,1711579188470,-500.0,0.00057129,120]
[320821037,1711579188497,-500.0,0.00057129,120]
[320821038,1711579188522,-500.0,0.00057129,120]
[320821039,1711579188547,-500.0,0.00057129,120]
[320821040,1711579188573,-500.0,0.00057129,120]
[320821041,1711579188598,-200.0,0.00057129,120]
[320821042,1711579188622,-5000.0,0.00057132,2]
[320821043,1711579188647,-171.00388606,0.00057713,14]
[320821044,1711579188673,-1863.9870056,0.00057809,4]
[320821045,1711579188701,-360.36178519,0.0005781,4]
[320821046,1711579188726,-605.04151325,0.0005781,4]
[320821047,1711579188751,-1095.22297182,0.00057821,4]
[320821048,1711579188776,-2022.70268072,0.00057822,4]
[320821049,1711579188848,500.0,0.00057129,120]
[320821050,1711579188878,200.0,0.00057129,120]
[320821051,1711579188925,500.0,0.00057129,120]
[320821052,1711579188955,447.59426515,0.00055787,4]
[320821053,1711579189396,420.85279542,0.00055787,2]
[320821054,1711579191056,500.0,0.00057129,120]
[320821055,1711579193163,1730.73494631,0.00055787,4]
[320821061,1711579817810,-1800.0,0.00049551,4]
[320821062,1711579817843,-323.17304311,0.00049551,4]
[320821063,1711579817874,-1374.624522,0.00049552,120]
[320821064,1711579817903,-247.1478093,0.00050529,4]
[320821065,1711579817932,-512.72317929,0.00050529,4]
[320821066,1711579817960,-623.36698867,0.00050529,4]
[320821067,1711579817987,-3005.92944866,0.00050529,4]
[320821068,1711579818013,-329.84310034,0.00050529,4]
[320821069,1711579818145,-1603.93250442,0.0005053,4]
[320821070,1711579818173,-7891.30491985,0.0005053,4]
[320821071,1711579818199,-155.00155002,0.0005053,4]
[320821072,1711579818225,-287.68807297,0.00050531,4]
[320821073,1711579818252,-1730.73494631,0.00050531,4]
[320821074,1711579818281,-350.806469,0.00050532,2]
[320821075,1711579818308,-3185.02078491,0.00050558,4]
[320821076,1711579818337,-2952.93352595,0.00050558,4]
[320821077,1711579818365,-345.62064209,0.00050559,4]
[320821078,1711579818394,-72782.22449138,0.00050559,4]
[320821079,1711579818420,-5000.0,0.0005056,30]
[320821080,1711579818447,-13046.9889451,0.00051071,2]
[320821081,1711579818473,-927.63112725,0.00051838,4]
[320821082,1711579818499,-179.59048265,0.00051843,14]
[320821083,1711579818524,-166.666667,0.00051946,2]
[320821084,1711579818551,-1078.42499828,0.00052212,2]
[320821085,1711579818577,-500.0,0.00052305,120]
[320821086,1711579818603,-500.0,0.00052305,120]
[320821087,1711579818629,-500.0,0.00052305,120]
[320821088,1711579818655,-468.6287142,0.00052305,120]
[320821089,1711579818681,-500.0,0.00052305,120]
[320821090,1711579818710,-316.33262835,0.00052305,120]
[320821091,1711579818736,-500.0,0.00052305,120]
[320821092,1711579818763,-563.60502623,0.00052305,120]
[320821093,1711579818788,-500.0,0.00052305,120]
[320821094,1711579818814,-500.0,0.00052305,120]
[320821095,1711579818840,-500.0,0.00052305,120]
[320821096,1711579818866,-500.0,0.00052305,120]
[320821097,1711579818890,-500.0,0.00052305,120]
[320821098,1711579818915,-500.0,0.00052305,120]
[320821099,1711579818941,-24900.0,0.00052312,2]
[320821100,1711579818967,-518.55870051,0.00052777,120]
[320821101,1711579818993,-500.0,0.00052777,120]
[320821102,1711579819018,-412.5375568,0.00052777,120]
[320821103,1711579819043,-383.60291451,0.00052777,120]
[320821104,1711579819069,-587.35799531,0.00052777,120]
[320821105,1711579819097,-500.0,0.00052777,120]
[320821106,1711579819135,-500.0,0.00052777,120]
[320821107,1711579819160,-615.06548739,0.00052777,120]
[320821108,1711579819185,-1078.42499824,0.00053081,2]
[320821109,1711579819210,-340.687846,0.00053267,2]
[320821110,1711579819236,-500.0,0.0005331,120]
[320821111,1711579819262,-500.0,0.00053418,120]
[320821112,1711579819287,-500.0,0.00053418,120]
[320821113,1711579819312,-500.0,0.00053418,120]
[320821114,1711579819337,-500.0,0.00053418,120]
[320821115,1711579819364,-1000.0,0.00053418,2]
[320821116,1711579819389,-1078.42499824,0.0005395,2]
[320821117,1711579819414,-2058.4066234,0.00053964,2]
[320821118,1711579819438,-668.5092492,0.00054511,4]
[320821119,1711579819463,-1340.61342705,0.00054689,4]
[320821120,1711579819487,-999.48777803,0.00054689,4]
[320821121,1711579819513,-464.26497069,0.0005469,4]
[320821122,1711579819538,-642.10835058,0.00054691,15]
[320821123,1711579819562,-6000.0,0.00054794,120]
[320821124,1711579819587,-1078.42499824,0.00054818,2]
[320821125,1711579819613,-500.0,0.00055528,120]
[320821126,1711579819638,-500.0,0.00055528,120]
[320821127,1711579819663,-1078.42499824,0.00055687,2]
[320821128,1711579819688,-462.73220732,0.00055786,4]
[320821129,1711579819714,-147941.54117783,0.00055787,61]
[320821130,1711579819739,-45792.9085887,0.00055787,120]
[320821131,1711579819765,-500.0,0.0005605,120]
[320821132,1711579819879,-6000.0,0.00056158,120]
[320821133,1711579819911,-500.0,0.00056158,120]
[320821134,1711579819940,-500.0,0.00056158,120]
[320821135,1711579819970,-500.0,0.00056158,120]
[320821136,1711579819998,-500.0,0.00056158,120]
[320821137,1711579820026,-1000.0,0.00056158,2]
[320821138,1711579820054,-500.0,0.00056612,120]
[320821139,1711579820082,-500.0,0.00056612,120]
[320821140,1711579820111,-500.0,0.00056612,120]
[320821141,1711579820139,-500.0,0.00056612,120]
[320821142,1711579820166,-498.20379783,0.00056612,120]
[320821143,1711579820194,-500.0,0.00056612,120]
[320821144,1711579820221,-1140.0,0.00056612,90]
[320821145,1711579820248,-2021.95,0.00056612,120]
[320821146,1711579820276,-500.0,0.00056612,120]
[320821147,1711579820304,-500.0,0.00056612,21]
[320821148,1711579820331,-500.0,0.00056612,120]
[320821149,1711579820357,-500.0,0.00056612,120]
[320821150,1711579820388,-500.0,0.00056612,120]
[320821151,1711579820414,-500.0,0.00056612,120]
[320821152,1711579820440,-14950.05,0.00056612,120]
[320821153,1711579820466,-14950.05,0.00056612,120]
[320821154,1711579820492,-500.0,0.00056612,120]
[320821155,1711579820517,-500.0,0.00056612,120]
[320821156,1711579820543,-500.0,0.00056612,120]
[320821157,1711579820570,-500.0,0.00056612,120]
[320821158,1711579820596,-500.0,0.00056612,120]
[320821159,1711579820622,-603.82911655,0.00056612,120]
[320821160,1711579820648,-503.55031593,0.00056612,120]
[320821161,1711579820674,-500.0,0.00056612,20]
[320821162,1711579820701,-14950.05,0.00057129,120]
[320821163,1711579820726,-1374.624522,0.00057811,120]
[320821164,1711579820751,-450.25383306,0.00057821,4]
[320821165,1711579820779,-207.79847355,0.00057821,4]
[320821166,1711579820805,-575.7191952,0.00057821,4]
[320821167,1711579820832,-287.56781652,0.00057821,4]
[320821168,1711579820858,-313.1586989,0.00057823,4]
[320821169,1711579820884,-500.0,0.00058268,120]
[320821170,1711579820912,-500.0,0.00058268,120]
[320821171,1711579820938,-395.81401963,0.00058408,4]
[320821172,1711579820969,-500.0,0.0005879,120]
[320821173,1711579820995,-6000.0,0.00058898,120]
[320821174,1711579821022,-172.72779075,0.00058898,120]
[320821175,1711579821049,-500.0,0.00058898,120]
[320821176,1711579821078,-500.0,0.00058898,120]
[320821177,1711579821106,-1000.0,0.00058898,2]
[320821178,1711579821134,-1259.56,0.00059004,120]
[320821179,1711579821163,-166.666667,0.00059027,2]
[320821180,1711579821192,-500.0,0.00059352,120]
[320821181,1711579821220,-500.0,0.00059352,120]
[320821182,1711579821248,-500.0,0.00059352,120]
[320821183,1711579821277,-500.0,0.00059352,120]
[320821184,1711579821304,-1140.0,0.00059352,90]
[320821185,1711579821331,-2021.95,0.00059352,120]
[320821186,1711579821362,-500.0,0.00059352,120]
[320821187,1711579821390,-500.0,0.00059352,21]
[320821188,1711579821416,-500.0,0.00059352,120]
[320821189,1711579821444,-500.0,0.00059352,120]
[320821190,1711579821471,-500.0,0.00059352,120]
[320821191,1711579821499,-668.5092492,0.00059511,4]
[320821192,1711579821524,-1577.41320138,0.0006,2]
[320821193,1711579821550,-417.11758748,0.00060009,7]
[320821194,1711579821577,-156.68673277,0.00060009,7]
[320821195,1711579821603,-155.77267957,0.00060009,7]
[320821196,1711579821629,-500.0,0.0006001,120]
[320821197,1711579821655,-500.0,0.0006001,120]
[320821198,1711579821680,-500.0,0.00060012,120]
[320821199,1711579821705,-500.0,0.00060012,120]
[320821200,1711579821731,-500.0,0.00060012,120]
[320821201,1711579821756,-500.0,0.00060012,120]
[320821202,1711579821782,-500.0,0.00060012,120]
[320821203,1711579821808,-500.25135267,0.00060012,120]
[320821204,1711579821833,-500.0,0.00060012,120]
[320821205,1711579821858,-500.0,0.00060012,120]
[320821206,1711579821883,-500.0,0.00060012,120]
[320821207,1711579822001,-500.0,0.00060012,120]
[320821208,1711579822027,-500.0,0.00060012,120]
[320821209,1711579822053,-500.0,0.00060012,120]
[320821210,1711579822079,-500.0,0.00060012,120]
[320821211,1711579822107,-500.0,0.00060012,120]
[320821212,1711579822135,-355.76285483,0.00060012,120]
[320821213,1711579822161,-500.0,0.00060012,120]
[320821214,1711579822189,-1000.0,0.00060012,7]
[320821215,1711579822215,-926.45303879,0.00060118,7]
[320821216,1711579822259,-425.79520623,0.00060118,7]
[320821217,1711579822298,-205.37769357,0.00060118,7]
[320821218,1711579822329,-2019.36629576,0.00060118,7]
[320821219,1711579822359,-2128.93383037,0.00060119,7]
[320821220,1711579822393,-1612.81913552,0.00060119,7]
[320821221,1711579822423,-1788.97619403,0.00060119,7]
[320821222,1711579822457,-310.42848237,0.00060119,7]
[320821223,1711579822489,-403.75676384,0.00060119,7]
[320821224,1711579822519,-156.26865924,0.00060119,7]
[320821225,1711579822547,-14950.05,0.00060119,120]
[320821226,1711579822576,-14950.05,0.00060129,120]
[320821227,1711579822604,-599.0,0.00060129,120]
[320821228,1711579822633,-500.0,0.00061007,120]
[320821229,1711579822666,-500.0,0.00061007,120]
[320821230,1711579822696,-500.0,0.00061529,120]
[320821231,1711579822724,-3380.65348068,0.00061637,120]
[320821232,1711579822753,-500.0,0.00061637,120]
[320821233,1711579822783,-658.79573816,0.00061637,2]
[320821234,1711579822811,-1259.56,0.00061744,120]
[320821235,1711579822839,-287.9,0.00062092,120]
[320821236,1711579822866,-500.0,0.00062092,120]
[320821237,1711579822895,-500.0,0.00062092,120]
[320821238,1711579822924,-500.0,0.00062092,120]
[320821239,1711579822953,-1140.0,0.00062092,90]
[320821240,1711579822980,-2021.95,0.00062092,120]
[320821241,1711579823006,-500.0,0.00062092,120]
[320821242,1711579823033,-500.0,0.00062092,21]
[320821243,1711579823075,-500.0,0.00062092,120]
[320821244,1711579823114,-500.0,0.00062092,120]
[320821245,1711579823149,-500.0,0.00062092,120]
[320821246,1711579823183,-500.0,0.0006275,120]
[320821247,1711579823216,-500.0,0.0006275,120]
[320821248,1711579823250,-500.0,0.00062752,120]
[320821249,1711579823284,-500.0,0.00062752,120]
[320821250,1711579823319,-491.76879244,0.00062752,120]
[320821251,1711579823353,-500.0,0.00062752,120]
[320821252,1711579823385,-500.0,0.00062752,120]
[320821253,1711579823416,-320.59053935,0.00062752,120]
[320821254,1711579823445,-461.33,0.00062752,120]
[320821255,1711579823476,-500.0,0.00062752,120]
[320821256,1711579823505,-1000.0,0.00062752,7]
[320821257,1711579823534,-14950.05,0.00062881,120]
[320821258,1711579823566,-14950.05,0.00062881,120]
[320821259,1711579823596,-500.0,0.00063013,120]
[320821260,1711579823628,-500.0,0.00063013,120]
[320821261,1711579823658,-500.0,0.00063747,120]
[320821262,1711579823689,-500.0,0.00063747,120]
[320821263,1711579823719,-180.65382391,0.00063884,14]
[320821264,1711579823750,-500.0,0.00063884,120]
[320821265,1711579823782,-500.0,0.00063884,120]
[320821266,1711579823814,-400.03067079,0.00063997,7]
[320821267,1711579823842,-300.78961759,0.00063997,7]
[320821268,1711579823868,-171.48062602,0.00063997,7]
[320821269,1711579823897,-2630.94438243,0.00063997,7]
[320821270,1711579823929,-245.12697935,0.00063997,7]
[320821271,1711579823960,-343.90502175,0.00063997,2]
[320821272,1711579823992,-274.65419547,0.00063997,7]
[320821273,1711579824022,-956.68110623,0.00063997,120]
[320821274,1711579824053,-14950.05,0.00063998,120]
[320821275,1711579824083,-14950.05,0.00063998,120]
[320821276,1711579824116,-14950.05,0.00063998,120]
[320821277,1711579824146,-500.0,0.00064377,120]
[320821278,1711579824175,-176.48301418,0.0006441,12]
[320821279,1711579824334,-1259.56,0.00064484,120]
[320821280,1711579824364,-668.5092492,0.00064511,4]
[320821281,1711579824390,-500.0,0.00064831,120]
[320821282,1711579824416,-500.0,0.00064831,120]
[320821283,1711579824442,-500.0,0.00064831,120]
[320821284,1711579824468,-1140.0,0.00064831,90]
[320821285,1711579824494,-2021.95,0.00064831,120]
[320821286,1711579824520,-500.0,0.00064831,120]
[320821287,1711579824551,-500.0,0.00064831,21]
[320821288,1711579824593,-500.0,0.00064831,120]
[320821289,1711579824625,-500.0,0.00064831,120]
[320821290,1711579824655,-500.0,0.0006549,120]
[320821291,1711579824685,-500.0,0.00065491,120]
[320821292,1711579824715,-500.0,0.00065491,120]
[320821293,1711579824743,-500.0,0.00065491,120]
[320821294,1711579824772,-500.0,0.00065491,120]
[320821295,1711579824801,-500.0,0.00065491,120]
[320821296,1711579824830,-1000.0,0.00065491,7]
[320821297,1711579824860,-150.98490151,0.00065662,2]
[320821298,1711579824888,-500.0,0.00065753,120]
[320821299,1711579824916,-150.0,0.00065753,120]
[320821300,1711579824945,-1374.624522,0.0006607,120]
[320821301,1711579824975,-500.0,0.00066487,120]
[320821302,1711579825005,-533.97,0.00066487,120]
[320821303,1711579825041,-301.96980302,0.00066765,4]
[320821304,1711579825069,-500.0,0.00067117,120]
[320821305,1711579825099,-300.0,0.00067123,120]
[320821306,1711579825128,-1259.56,0.00067224,120]
[320821307,1711579825156,-500.0,0.00067571,120]
[320821308,1711579825186,-500.0,0.00067571,120]
[320821309,1711579825214,-1140.0,0.00067571,90]
[320821310,1711579825242,-2021.95,0.00067571,120]
[320821311,1711579825270,-500.0,0.00067571,120]
[320821312,1711579825297,-500.0,0.00067571,21]
[320821313,1711579825323,-500.0,0.00067571,120]
[320821314,1711579825350,-500.0,0.00067571,120]
[320821315,1711579825377,-500.0,0.00068229,120]
[320821316,1711579825404,-500.0,0.00068231,120]
[320821317,1711579825430,-500.0,0.00068231,120]
[320821318,1711579825458,-500.0,0.00068231,120]
[320821319,1711579825486,-600.72104738,0.00068231,120]
[320821320,1711579825515,-1000.0,0.00068231,7]
[320821321,1711579825543,-14950.05,0.0006834,120]
[320821322,1711579825569,-3960.57043915,0.00068393,2]
[320821323,1711579825596,-14950.05,0.00068492,120]
[320821324,1711579825623,-10000.0,0.00068493,120]
[320821325,1711579825654,-10000.0,0.00068493,120]
[320821326,1711579825680,-10000.0,0.00068493,120]
[320821327,1711579825709,-10000.0,0.00068493,120]
[320821328,1711579825734,-450.0,0.00068493,120]
[320821329,1711579825761,-5000.0,0.00068493,120]
[320821330,1711579825786,-5000.0,0.00068493,120]
[320821331,1711579825812,-5000.0,0.00068493,120]
[320821332,1711579825838,-5000.0,0.00068493,120]
[320821333,1711579825863,-5000.0,0.00068493,120]
[320821334,1711579825889,-4961.68039378,0.00068493,120]
[320821335,1711579825916,-258.51149146,0.00069,7]
[320821336,1711579825943,-462.32,0.00069227,120]
[320821337,1711579825968,-150.0,0.00069492,120]
[320821338,1711579825996,-418.52,0.00069856,120]
[320821339,1711579826024,-600.0,0.00069863,120]
[320821340,1711579826052,-1259.56,0.00069963,120]
[320821341,1711579826124,500.0,0.00056612,120]
[320821342,1711579826156,500.0,0.00059352,120]
[320821343,1711579826187,500.0,0.00062092,120]
[320821344,1711579826217,500.0,0.00064831,120]
[320821345,1711579826252,500.0,0.00067571,120]
[320821346,1711579826289,500.0,0.00056612,120]
[320821347,1711579826523,500.0,0.00056612,120]
[320821348,1711579826555,454.3,0.00059352,120]
[320821349,1711579826586,5000.0,0.0007,2]
[320821350,1711579828521,2516.00350367,0.0006483,7]
[320821351,1711579829223,1308.49398382,0.00056611,4]
[320821352,1711579829310,77414.02957083,0.00068492,7]
[320821353,1711579829365,1200.0,0.00056611,4]
[320821354,1711579830063,701.28786225,0.0006483,7]
[320821355,1711579830225,500.0,0.00056612,120]
[320821356,1711579830514,500.0,0.00059352,120]
[320821357,1711579830762,500.0,0.00062092,120]
[320821358,1711579831040,170.8,0.00064831,120]
[320821396,1711579832369,-259.60147622,0.0007031,7]
[320821399,1711579832379,-1804.42406748,0.0007031,7]
[320821401,1711579832390,-195.35207037,0.0007031,7]
[320821403,1711579832400,-500.0,0.00070311,120]
[320821405,1711579832410,-500.0,0.00070311,120]
[320821407,1711579832420,-1140.0,0.00070311,90]
[320821409,1711579832430,-2021.95,0.00070311,120]